[Event "Titled Tuesday Blitz June 27 Late 2023"]
[White "Manukyan, Sargis A."]
[Black "Leenhouts, Koen"]
[WhiteFideId "13303970"]
[BlackFideId "1008439"]
[WhiteElo "2659"]
[BlackElo "2534"]
[Result "0-1"]
[Round "6"]
[TimeControl "180+2"]
[Date "2023.06.27"]
[WhiteClock "0:00:11"]
[BlackClock "0:00:12"]
[Board "60"]

1. d4 {[%clk 0:03:00]}  Nf6 {[%clk 0:02:58]} 2. c4 {[%clk 0:03:01]}  g6 {[%clk 0:02:59]} 3. Nc3 {[%clk 0:03:02]}  d5 {[%clk 0:02:59]} 4. Bf4 {[%clk 0:03:01]}  Bg7 {[%clk 0:02:58]} 5. e3 {[%clk 0:03:02]}  O-O {[%clk 0:02:57]} 6. Rc1 {[%clk 0:03:02]}  c6 {[%clk 0:02:53]} 7. h3 {[%clk 0:03:01]}  e6 {[%clk 0:02:42]} 8. Nf3 {[%clk 0:03:01]}  Nbd7 {[%clk 0:02:42]} 9. c5 {[%clk 0:02:59]}  b6 {[%clk 0:02:36]} 10. b4 {[%clk 0:02:56]}  a5 {[%clk 0:02:34]} 11. b5 {[%clk 0:02:51]}  Bb7 {[%clk 0:02:25]} 12. Na4 {[%clk 0:02:36]}  bxc5 {[%clk 0:02:17]} 13. Nxc5 {[%clk 0:02:35]}  Nxc5 {[%clk 0:02:16]} 14. Rxc5 {[%clk 0:02:33]}  Ne4 {[%clk 0:02:13]} 15. Rc1 {[%clk 0:02:21]}  cxb5 {[%clk 0:02:07]} 16. Bxb5 {[%clk 0:02:22]}  Qb6 {[%clk 0:01:57]} 17. a4 {[%clk 0:02:22]}  Ba6 {[%clk 0:01:57]} 18. Bxa6 {[%clk 0:01:57]}  Qxa6 {[%clk 0:01:58]} 19. Qe2 {[%clk 0:01:56]}  Rfc8 {[%clk 0:01:34]} 20. Qxa6 {[%clk 0:01:47]}  Rxc1+ {[%clk 0:01:33]} 21. Ke2 {[%clk 0:01:48]}  Rc2+ {[%clk 0:01:32]} 22. Kd1 {[%clk 0:01:39]}  Rxa6 {[%clk 0:01:25]} 23. Kxc2 {[%clk 0:01:39]}  Rc6+ {[%clk 0:01:25]} 24. Kb3 {[%clk 0:01:19]}  Nxf2 {[%clk 0:01:25]} 25. Rf1 {[%clk 0:01:12]}  Ne4 {[%clk 0:01:22]} 26. Rd1 {[%clk 0:00:59]}  Rc3+ {[%clk 0:01:13]} 27. Kb2 {[%clk 0:00:59]}  Rc4 {[%clk 0:01:14]} 28. Ra1 {[%clk 0:00:57]}  h6 {[%clk 0:01:08]} 29. Ra3 {[%clk 0:00:56]}  g5 {[%clk 0:01:06]} 30. Be5 {[%clk 0:00:56]}  Rb4+ {[%clk 0:00:52]} 31. Kc2 {[%clk 0:00:52]}  Rc4+ {[%clk 0:00:51]} 32. Kd3 {[%clk 0:00:45]}  Bf8 {[%clk 0:00:51]} 33. Ra2 {[%clk 0:00:42]}  Rc3+ {[%clk 0:00:44]} 34. Ke2 {[%clk 0:00:42]}  f6 {[%clk 0:00:44]} 35. Bh2 {[%clk 0:00:40]}  Rc1 {[%clk 0:00:42]} 36. Rb2 {[%clk 0:00:29]}  Ra1 {[%clk 0:00:36]} 37. Rb6 {[%clk 0:00:29]}  Ra2+ {[%clk 0:00:35]} 38. Kd3 {[%clk 0:00:26]}  Ra3+ {[%clk 0:00:33]} 39. Ke2 {[%clk 0:00:26]}  Rxa4 {[%clk 0:00:32]} 40. Rxe6 {[%clk 0:00:25]}  Ra2+ {[%clk 0:00:32]} 41. Kf1 {[%clk 0:00:24]}  a4 {[%clk 0:00:29]} 42. Ra6 {[%clk 0:00:16]}  a3 {[%clk 0:00:27]} 43. Bc7 {[%clk 0:00:13]}  Rf2+ {[%clk 0:00:22]} 44. Kg1 {[%clk 0:00:12]}  a2 {[%clk 0:00:22]} 45. Ra8 {[%clk 0:00:10]}  Rc2 {[%clk 0:00:21]} 46. Kh2 {[%clk 0:00:06]}  Rxc7 {[%clk 0:00:19]} 47. Rxa2 {[%clk 0:00:06]}  Bd6+ {[%clk 0:00:20]} 48. g3 {[%clk 0:00:03]}  Nxg3 {[%clk 0:00:19]} 49. Kg2 {[%clk 0:00:04]}  Nf5 {[%clk 0:00:17]} 50. Kf2 {[%clk 0:00:04]}  Rc3 {[%clk 0:00:17]} 51. Ra8+ {[%clk 0:00:03]}  Kf7 {[%clk 0:00:15]} 52. Ra7+ {[%clk 0:00:04]}  Kg6 {[%clk 0:00:15]} 53. e4 {[%clk 0:00:04]}  dxe4 {[%clk 0:00:14]} 54. Ng1 {[%clk 0:00:05]}  Rc2+ {[%clk 0:00:13]} 55. Ne2 {[%clk 0:00:05]}  Nxd4 {[%clk 0:00:10]} 56. h4 {[%clk 0:00:06]}  Rxe2+ {[%clk 0:00:11]} 57. Kf1 {[%clk 0:00:06]}  Rd2 {[%clk 0:00:10]} 58. h5+ {[%clk 0:00:06]}  Kxh5 {[%clk 0:00:09]} 59. Ra1 {[%clk 0:00:07]}  Rd3 {[%clk 0:00:08]} 60. Ra2 {[%clk 0:00:07]}  Rf3+ {[%clk 0:00:09]} 61. Kg1 {[%clk 0:00:07]}  Nf5 {[%clk 0:00:08]} 62. Kh1 {[%clk 0:00:07]}  Kg6 {[%clk 0:00:08]} 63. Rd2 {[%clk 0:00:06]}  Rh3+ {[%clk 0:00:08]} 64. Kg1 {[%clk 0:00:06]}  Rg3+ {[%clk 0:00:09]} 65. Kh1 {[%clk 0:00:07]}  Rd3 {[%clk 0:00:10]} 66. Rg2 {[%clk 0:00:06]}  Rd1+ {[%clk 0:00:09]} 67. Rg1 {[%clk 0:00:07]}  Rxg1+ {[%clk 0:00:09]} 68. Kxg1 {[%clk 0:00:07]}  Bc5+ {[%clk 0:00:10]} 69. Kg2 {[%clk 0:00:08]}  e3 {[%clk 0:00:10]} 70. Kf1 {[%clk 0:00:08]}  g4 {[%clk 0:00:11]} 71. Ke2 {[%clk 0:00:09]}  h5 {[%clk 0:00:11]} 72. Kf1 {[%clk 0:00:09]}  h4 {[%clk 0:00:12]} 73. Kg2 {[%clk 0:00:09]}  h3+ {[%clk 0:00:12]} 74. Kf1 {[%clk 0:00:10]}  Ng3+ {[%clk 0:00:11]} 75. Kg1 {[%clk 0:00:10]}  e2+ {[%clk 0:00:11]} 76. Kh2 {[%clk 0:00:10]}  Nf1+ {[%clk 0:00:10]} 77. Kh1 {[%clk 0:00:10]}  Ne3 {[%clk 0:00:10]} 78. Kh2 {[%clk 0:00:11]}  Nf5 {[%clk 0:00:11]} 79. Kh1 {[%clk 0:00:10]}  e1=Q+ {[%clk 0:00:11]} 80. Kh2 {[%clk 0:00:11]}  Qf2+ {[%clk 0:00:11]} 81. Kh1 {[%clk 0:00:11]}  Qg2# {[%clk 0:00:12]} 0-1


[Site "https://www.chess.com"]

[Event "Titled Tuesday Blitz June 27 Late 2023"]
[White "Camacho Collados, Marcos"]
[Black "Chor, Kevin"]
[WhiteFideId "2266237"]
[BlackFideId "2090740"]
[WhiteElo "2636"]
[BlackElo "2531"]
[Result "0-1"]
[Round "6"]
[TimeControl "180+2"]
[Date "2023.06.27"]
[WhiteClock "0:00:23"]
[BlackClock "0:00:08"]
[Board "63"]

1. Nf3 {[%clk 0:03:00]}  c5 {[%clk 0:02:59]} 2. g3 {[%clk 0:02:58]}  Nc6 {[%clk 0:02:59]} 3. Bg2 {[%clk 0:02:59]}  g6 {[%clk 0:02:59]} 4. O-O {[%clk 0:02:59]}  Bg7 {[%clk 0:03:00]} 5. c4 {[%clk 0:02:58]}  Nf6 {[%clk 0:03:00]} 6. Nc3 {[%clk 0:02:59]}  O-O {[%clk 0:02:59]} 7. a3 {[%clk 0:02:57]}  Rb8 {[%clk 0:02:58]} 8. Rb1 {[%clk 0:02:57]}  a5 {[%clk 0:02:58]} 9. d4 {[%clk 0:02:50]}  d6 {[%clk 0:02:58]} 10. d5 {[%clk 0:02:48]}  Na7 {[%clk 0:02:53]} 11. e4 {[%clk 0:02:48]}  b5 {[%clk 0:02:47]} 12. e5 {[%clk 0:02:45]}  Ng4 {[%clk 0:02:41]} 13. exd6 {[%clk 0:02:37]}  exd6 {[%clk 0:02:36]} 14. Bg5 {[%clk 0:02:37]}  Qb6 {[%clk 0:02:28]} 15. h3 {[%clk 0:02:30]}  Ne5 {[%clk 0:02:25]} 16. Nxe5 {[%clk 0:02:29]}  Bxe5 {[%clk 0:02:26]} 17. Ne4 {[%clk 0:02:27]}  f5 {[%clk 0:02:12]} 18. Nd2 {[%clk 0:02:24]}  Bd7 {[%clk 0:01:43]} 19. Re1 {[%clk 0:02:24]}  Rbe8 {[%clk 0:01:31]} 20. Bh6 {[%clk 0:02:13]}  Rf7 {[%clk 0:01:26]} 21. Nf3 {[%clk 0:02:14]}  bxc4 {[%clk 0:01:17]} 22. h4 {[%clk 0:01:58]}  Nb5 {[%clk 0:01:10]} 23. Bf1 {[%clk 0:01:44]}  Nd4 {[%clk 0:01:02]} 24. Nxe5 {[%clk 0:01:39]}  dxe5 {[%clk 0:01:02]} 25. Bxc4 {[%clk 0:01:39]}  Qd6 {[%clk 0:01:02]} 26. Be3 {[%clk 0:01:30]}  f4 {[%clk 0:00:58]} 27. gxf4 {[%clk 0:01:26]}  Qf6 {[%clk 0:00:29]} 28. fxe5 {[%clk 0:01:11]}  Nf3+ {[%clk 0:00:27]} 29. Kf1 {[%clk 0:01:03]}  Bh3+ {[%clk 0:00:26]} 30. Ke2 {[%clk 0:01:03]}  Rxe5 {[%clk 0:00:25]} 31. d6 {[%clk 0:00:56]}  Be6 {[%clk 0:00:25]} 32. Bxe6 {[%clk 0:00:44]}  Qxe6 {[%clk 0:00:26]} 33. d7 {[%clk 0:00:38]}  Rxd7 {[%clk 0:00:23]} 34. Qa4 {[%clk 0:00:35]}  Rd2+ {[%clk 0:00:08]} 35. Kxf3 {[%clk 0:00:31]}  Qh3+ {[%clk 0:00:07]} 36. Kf4 {[%clk 0:00:30]}  Rf5+ {[%clk 0:00:07]} 37. Ke4 {[%clk 0:00:23]}  Qf3# {[%clk 0:00:08]} 0-1


[Site "https://www.chess.com"]

[Event "Titled Tuesday Blitz June 27 Late 2023"]
[White "Martinez Reyes, Pedro Ramon"]
[Black "Vlassov, Nikolai"]
[WhiteFideId "3901807"]
[BlackFideId "4103360"]
[WhiteElo "2531"]
[BlackElo "2635"]
[Result "0-1"]
[Round "6"]
[TimeControl "180+2"]
[Date "2023.06.27"]
[WhiteClock "0:00:00"]
[BlackClock "0:00:47"]
[Board "64"]

1. e4 {[%clk 0:01:44]}  Nc6 {[%clk 0:02:58]} 2. Nf3 {[%clk 0:01:38]}  d5 {[%clk 0:02:57]} 3. exd5 {[%clk 0:01:38]}  Qxd5 {[%clk 0:02:58]} 4. Nc3 {[%clk 0:01:37]}  Qa5 {[%clk 0:02:58]} 5. Bb5 {[%clk 0:01:37]}  Bd7 {[%clk 0:02:58]} 6. d4 {[%clk 0:01:35]}  a6 {[%clk 0:02:58]} 7. Bd3 {[%clk 0:01:31]}  O-O-O {[%clk 0:02:53]} 8. Bd2 {[%clk 0:01:29]}  Bg4 {[%clk 0:02:51]} 9. d5 {[%clk 0:01:17]}  Nb4 {[%clk 0:02:45]} 10. Be2 {[%clk 0:01:16]}  Nxd5 {[%clk 0:02:42]} 11. O-O {[%clk 0:01:09]}  Nf4 {[%clk 0:02:25]} 12. h3 {[%clk 0:00:33]}  Nxe2+ {[%clk 0:02:17]} 13. Nxe2 {[%clk 0:00:31]}  Bxf3 {[%clk 0:02:08]} 14. Bxa5 {[%clk 0:00:30]}  Rxd1 {[%clk 0:02:08]} 15. Rfxd1 {[%clk 0:00:29]}  Bxe2 {[%clk 0:02:07]} 16. Rd2 {[%clk 0:00:27]}  b6 {[%clk 0:01:57]} 17. Bc3 {[%clk 0:00:26]}  Bb5 {[%clk 0:01:51]} 18. Rad1 {[%clk 0:00:25]}  Nf6 {[%clk 0:01:50]} 19. Rd8+ {[%clk 0:00:25]}  Kb7 {[%clk 0:01:50]} 20. g4 {[%clk 0:00:20]}  h6 {[%clk 0:01:48]} 21. b3 {[%clk 0:00:16]}  Ne4 {[%clk 0:01:37]} 22. Be5 {[%clk 0:00:16]}  Nd6 {[%clk 0:01:33]} 23. c4 {[%clk 0:00:14]}  Bc6 {[%clk 0:01:33]} 24. c5 {[%clk 0:00:14]}  bxc5 {[%clk 0:01:33]} 25. Rc1 {[%clk 0:00:14]}  f6 {[%clk 0:01:27]} 26. Bb2 {[%clk 0:00:13]}  e5 {[%clk 0:01:20]} 27. Ba3 {[%clk 0:00:09]}  Nf7 {[%clk 0:01:18]} 28. Rd2 {[%clk 0:00:09]}  Bd6 {[%clk 0:01:14]} 29. Bxc5 {[%clk 0:00:09]}  Bxc5 {[%clk 0:01:11]} 30. Rxc5 {[%clk 0:00:10]}  Rd8 {[%clk 0:01:10]} 31. Rdc2 {[%clk 0:00:10]}  Rd6 {[%clk 0:01:11]} 32. Kh2 {[%clk 0:00:10]}  Ng5 {[%clk 0:01:10]} 33. R5c3 {[%clk 0:00:09]}  Ne4 {[%clk 0:01:04]} 34. Rc4 {[%clk 0:00:08]}  Nd2 {[%clk 0:00:58]} 35. Rb4+ {[%clk 0:00:08]}  Kc8 {[%clk 0:00:56]} 36. g5 {[%clk 0:00:04]}  hxg5 {[%clk 0:00:55]} 37. h4 {[%clk 0:00:04]}  gxh4 {[%clk 0:00:54]} 38. Kh3 {[%clk 0:00:03]}  Nf3 {[%clk 0:00:52]} 39. Rbc4 {[%clk 0:00:02]}  Nd4 {[%clk 0:00:48]} 40. Kxh4 {[%clk 0:00:02]}  Nxc2 {[%clk 0:00:48]} 41. Rxc2 {[%clk 0:00:03]}  Kd7 {[%clk 0:00:47]} 42. Rc5 {[%clk 0:00:02]}  Rd5 {[%clk 0:00:47]} 43. Rc3 {[%clk 0:00:03]}  Rd4+ {[%clk 0:00:47]} 44. Kh5 {[%clk 0:00:00]}  Be4 {[%clk 0:00:47]} 0-1


[Site "https://www.chess.com"]

[Event "Titled Tuesday Blitz June 27 Late 2023"]
[White "Piesik, Piotr"]
[Black "Koutsin, Sergey"]
[WhiteFideId "1136194"]
[BlackFideId "14101483"]
[WhiteElo "2621"]
[BlackElo "2516"]
[Result "1-0"]
[Round "6"]
[TimeControl "180+2"]
[Date "2023.06.27"]
[WhiteClock "0:00:08"]
[BlackClock "0:00:00"]
[Board "67"]

1. Nf3 {[%clk 0:03:00]}  Nf6 {[%clk 0:02:59]} 2. g3 {[%clk 0:03:01]}  g6 {[%clk 0:02:57]} 3. Bg2 {[%clk 0:03:01]}  d5 {[%clk 0:02:58]} 4. O-O {[%clk 0:03:02]}  Bg7 {[%clk 0:02:58]} 5. d4 {[%clk 0:03:03]}  O-O {[%clk 0:02:58]} 6. c4 {[%clk 0:03:03]}  c6 {[%clk 0:02:58]} 7. Nc3 {[%clk 0:03:04]}  dxc4 {[%clk 0:02:42]} 8. a4 {[%clk 0:03:03]}  a5 {[%clk 0:02:38]} 9. e3 {[%clk 0:03:02]}  b6 {[%clk 0:02:29]} 10. Ne5 {[%clk 0:03:01]}  Nd5 {[%clk 0:02:27]} 11. Nxc6 {[%clk 0:02:55]}  Nxc6 {[%clk 0:02:27]} 12. Bxd5 {[%clk 0:02:53]}  Bb7 {[%clk 0:02:26]} 13. Bxc4 {[%clk 0:02:49]}  Nb4 {[%clk 0:02:20]} 14. Be2 {[%clk 0:02:47]}  e5 {[%clk 0:02:18]} 15. dxe5 {[%clk 0:02:36]}  Bxe5 {[%clk 0:02:05]} 16. e4 {[%clk 0:02:19]}  Bd4 {[%clk 0:01:47]} 17. Bh6 {[%clk 0:02:16]}  Re8 {[%clk 0:01:46]} 18. Bc4 {[%clk 0:02:09]}  Qf6 {[%clk 0:01:02]} 19. Nb5 {[%clk 0:01:56]}  Bxb2 {[%clk 0:00:49]} 20. Rb1 {[%clk 0:01:56]}  Bxe4 {[%clk 0:00:40]} 21. Bxf7+ {[%clk 0:01:30]}  Qxf7 {[%clk 0:00:18]} 22. Rxb2 {[%clk 0:01:26]}  Rad8 {[%clk 0:00:18]} 23. Qg4 {[%clk 0:01:13]}  Nd3 {[%clk 0:00:14]} 24. Re2 {[%clk 0:00:56]}  Ne5 {[%clk 0:00:07]} 25. Qxe4 {[%clk 0:00:56]}  Nf3+ {[%clk 0:00:08]} 26. Kg2 {[%clk 0:00:57]}  Rxe4 {[%clk 0:00:07]} 27. Rxe4 {[%clk 0:00:58]}  Nd2 {[%clk 0:00:07]} 28. Bxd2 {[%clk 0:00:48]}  Rxd2 {[%clk 0:00:07]} 29. Kg1 {[%clk 0:00:40]}  Qd7 {[%clk 0:00:03]} 30. Rfe1 {[%clk 0:00:35]}  Rd1 {[%clk 0:00:02]} 31. Rxd1 {[%clk 0:00:34]}  Qxd1+ {[%clk 0:00:02]} 32. Kg2 {[%clk 0:00:35]}  Qd5 {[%clk 0:00:01]} 33. f3 {[%clk 0:00:35]}  Qd7 {[%clk 0:00:01]} 34. h4 {[%clk 0:00:34]}  h5 {[%clk 0:00:01]} 35. Rf4 {[%clk 0:00:29]}  Kg7 {[%clk 0:00:01]} 36. Nd4 {[%clk 0:00:26]}  Qd5 {[%clk 0:00:01]} 37. Re4 {[%clk 0:00:22]}  Kf7 {[%clk 0:00:01]} 38. Nb5 {[%clk 0:00:20]}  Qd2+ {[%clk 0:00:01]} 39. Kg1 {[%clk 0:00:19]}  Qd7 {[%clk 0:00:01]} 40. Kf2 {[%clk 0:00:18]}  Qd2+ {[%clk 0:00:01]} 41. Re2 {[%clk 0:00:14]}  Qd7 {[%clk 0:00:01]} 42. Rc2 {[%clk 0:00:10]}  Kf6 {[%clk 0:00:00]} 43. Kg2 {[%clk 0:00:08]} 1-0


[Site "https://www.chess.com"]

[Event "Titled Tuesday Blitz June 27 Late 2023"]
[White "Moral Garcia, Serafin"]
[Black "Osmak, Yuliia"]
[WhiteFideId "2201925"]
[BlackFideId "14101602"]
[WhiteElo "2619"]
[BlackElo "2500"]
[Result "0-1"]
[Round "6"]
[TimeControl "180+2"]
[Date "2023.06.27"]
[WhiteClock "0:00:41"]
[BlackClock "0:01:19"]
[Board "68"]

1. e4 {[%clk 0:03:00]}  c5 {[%clk 0:02:59]} 2. Nf3 {[%clk 0:03:00]}  d6 {[%clk 0:02:59]} 3. d4 {[%clk 0:03:00]}  cxd4 {[%clk 0:03:00]} 4. Nxd4 {[%clk 0:03:00]}  Nf6 {[%clk 0:03:01]} 5. Nc3 {[%clk 0:03:00]}  a6 {[%clk 0:03:01]} 6. Be3 {[%clk 0:03:01]}  e6 {[%clk 0:03:01]} 7. g4 {[%clk 0:03:01]}  e5 {[%clk 0:03:01]} 8. Nf5 {[%clk 0:02:59]}  h5 {[%clk 0:03:02]} 9. g5 {[%clk 0:02:59]}  Nxe4 {[%clk 0:03:02]} 10. Nxg7+ {[%clk 0:03:00]}  Bxg7 {[%clk 0:03:03]} 11. Nxe4 {[%clk 0:03:00]}  d5 {[%clk 0:03:04]} 12. Ng3 {[%clk 0:02:58]}  e4 {[%clk 0:03:05]} 13. c3 {[%clk 0:02:38]}  Nc6 {[%clk 0:03:02]} 14. Nxh5 {[%clk 0:02:27]}  Be5 {[%clk 0:03:02]} 15. h4 {[%clk 0:02:18]}  d4 {[%clk 0:02:53]} 16. cxd4 {[%clk 0:02:18]}  Nxd4 {[%clk 0:02:50]} 17. Bg2 {[%clk 0:02:03]}  Qa5+ {[%clk 0:02:38]} 18. Kf1 {[%clk 0:01:52]}  Qb5+ {[%clk 0:02:31]} 19. Ke1 {[%clk 0:01:52]}  Qb4+ {[%clk 0:02:23]} 20. Bd2 {[%clk 0:01:47]}  Qxb2 {[%clk 0:02:14]} 21. Rc1 {[%clk 0:01:34]}  Be6 {[%clk 0:02:01]} 22. Bxe4 {[%clk 0:01:20]}  Rd8 {[%clk 0:01:53]} 23. Qa4+ {[%clk 0:01:02]}  b5 {[%clk 0:01:51]} 24. Qd1 {[%clk 0:00:55]}  Bc4 {[%clk 0:01:28]} 25. Rh3 {[%clk 0:00:45]}  Rxh5 {[%clk 0:01:21]} 26. Qxh5 {[%clk 0:00:41]}  Nf3+ {[%clk 0:01:19]} 0-1


[Site "https://www.chess.com"]

[Event "Titled Tuesday Blitz June 27 Late 2023"]
[White "Sun, Rick"]
[Black "Bernado Lopez, Roger"]
[WhiteFideId "30909481"]
[BlackFideId "24585009"]
[WhiteElo "2606"]
[BlackElo "2360"]
[Result "0-1"]
[Round "6"]
[TimeControl "180+2"]
[Date "2023.06.27"]
[WhiteClock "0:00:00"]
[BlackClock "0:00:17"]
[Board "74"]

1. d4 {[%clk 0:03:00]}  d5 {[%clk 0:02:59]} 2. Nc3 {[%clk 0:03:00]}  e6 {[%clk 0:02:58]} 3. Bf4 {[%clk 0:03:00]}  Bb4 {[%clk 0:02:58]} 4. e3 {[%clk 0:02:58]}  Nf6 {[%clk 0:02:58]} 5. Bd3 {[%clk 0:02:57]}  c5 {[%clk 0:02:58]} 6. dxc5 {[%clk 0:02:54]}  Nbd7 {[%clk 0:02:49]} 7. Nf3 {[%clk 0:02:53]}  Nxc5 {[%clk 0:02:48]} 8. O-O {[%clk 0:02:50]}  O-O {[%clk 0:02:47]} 9. Ne2 {[%clk 0:02:39]}  Nxd3 {[%clk 0:02:39]} 10. cxd3 {[%clk 0:02:33]}  b6 {[%clk 0:02:35]} 11. Qa4 {[%clk 0:02:16]}  Be7 {[%clk 0:02:32]} 12. Rfc1 {[%clk 0:02:05]}  Qd7 {[%clk 0:02:25]} 13. Qb3 {[%clk 0:01:46]}  Ba6 {[%clk 0:02:20]} 14. Rc7 {[%clk 0:01:30]}  Qd8 {[%clk 0:02:12]} 15. Rac1 {[%clk 0:01:28]}  Nh5 {[%clk 0:01:59]} 16. R7c2 {[%clk 0:00:33]}  Nxf4 {[%clk 0:01:55]} 17. Nxf4 {[%clk 0:00:31]}  Bd6 {[%clk 0:01:54]} 18. d4 {[%clk 0:00:28]}  Qd7 {[%clk 0:01:23]} 19. Ne5 {[%clk 0:00:26]}  Bxe5 {[%clk 0:01:23]} 20. dxe5 {[%clk 0:00:27]}  Rfc8 {[%clk 0:01:23]} 21. Qa3 {[%clk 0:00:21]}  Rxc2 {[%clk 0:01:08]} 22. Rxc2 {[%clk 0:00:20]}  Rc8 {[%clk 0:01:08]} 23. Rxc8+ {[%clk 0:00:16]}  Qxc8 {[%clk 0:01:09]} 24. h4 {[%clk 0:00:16]}  h6 {[%clk 0:01:02]} 25. Kh2 {[%clk 0:00:15]}  Qb7 {[%clk 0:00:46]} 26. Qd6 {[%clk 0:00:14]}  Bb5 {[%clk 0:00:42]} 27. g4 {[%clk 0:00:09]}  Qd7 {[%clk 0:00:37]} 28. Qb8+ {[%clk 0:00:08]}  Kh7 {[%clk 0:00:37]} 29. g5 {[%clk 0:00:07]}  hxg5 {[%clk 0:00:36]} 30. hxg5 {[%clk 0:00:08]}  Qe7 {[%clk 0:00:35]} 31. Nh3 {[%clk 0:00:03]}  Bf1 {[%clk 0:00:31]} 32. Qd6 {[%clk 0:00:03]}  Qxd6 {[%clk 0:00:19]} 33. g6+ {[%clk 0:00:00]}  Kxg6 {[%clk 0:00:17]} 0-1


[Site "https://www.chess.com"]

[Event "Titled Tuesday Blitz June 27 Late 2023"]
[White "Vdovin, Vadim"]
[Black "Skaric, Djuro"]
[WhiteFideId "24107158"]
[BlackFideId "934569"]
[WhiteElo "2602"]
[BlackElo "2351"]
[Result "1-0"]
[Round "6"]
[TimeControl "180+2"]
[Date "2023.06.27"]
[WhiteClock "0:00:10"]
[BlackClock "0:00:09"]
[Board "75"]

1. e4 {[%clk 0:02:56]}  d6 {[%clk 0:03:00]} 2. d4 {[%clk 0:02:56]}  g6 {[%clk 0:03:01]} 3. Nc3 {[%clk 0:02:56]}  Bg7 {[%clk 0:03:02]} 4. Nf3 {[%clk 0:02:56]}  Nf6 {[%clk 0:03:02]} 5. Bg5 {[%clk 0:02:56]}  O-O {[%clk 0:03:00]} 6. Qd2 {[%clk 0:02:56]}  Nc6 {[%clk 0:03:00]} 7. O-O-O {[%clk 0:02:52]}  a6 {[%clk 0:03:00]} 8. Bh6 {[%clk 0:02:45]}  Ng4 {[%clk 0:02:59]} 9. Bxg7 {[%clk 0:02:43]}  Kxg7 {[%clk 0:02:59]} 10. h3 {[%clk 0:02:29]}  Nf6 {[%clk 0:02:56]} 11. g4 {[%clk 0:02:23]}  h5 {[%clk 0:02:52]} 12. Qg5 {[%clk 0:01:58]}  Rh8 {[%clk 0:02:49]} 13. e5 {[%clk 0:01:54]}  Nh7 {[%clk 0:02:46]} 14. Qf4 {[%clk 0:01:35]}  Nf8 {[%clk 0:02:40]} 15. d5 {[%clk 0:01:00]}  dxe5 {[%clk 0:02:36]} 16. Qe3 {[%clk 0:00:41]}  Nb8 {[%clk 0:02:24]} 17. Nxe5 {[%clk 0:00:37]}  hxg4 {[%clk 0:02:15]} 18. Bc4 {[%clk 0:00:25]}  Qd6 {[%clk 0:01:23]} 19. hxg4 {[%clk 0:00:23]}  Rxh1 {[%clk 0:00:51]} 20. Rxh1 {[%clk 0:00:23]}  Kg8 {[%clk 0:00:38]} 21. Rh8+ {[%clk 0:00:17]}  Kxh8 {[%clk 0:00:35]} 22. Nxf7+ {[%clk 0:00:17]}  Kg7 {[%clk 0:00:34]} 23. Nxd6 {[%clk 0:00:18]}  exd6 {[%clk 0:00:33]} 24. Qe7+ {[%clk 0:00:18]}  Kg8 {[%clk 0:00:32]} 25. Ne4 {[%clk 0:00:17]}  Nbd7 {[%clk 0:00:32]} 26. Ng5 {[%clk 0:00:17]}  Ne5 {[%clk 0:00:31]} 27. f4 {[%clk 0:00:10]}  Bd7 {[%clk 0:00:15]} 28. fxe5 {[%clk 0:00:10]}  Re8 {[%clk 0:00:13]} 29. Qf7+ {[%clk 0:00:10]}  Kh8 {[%clk 0:00:13]} 30. e6 {[%clk 0:00:10]}  Ba4 {[%clk 0:00:09]} 31. Bd3 {[%clk 0:00:10]} 1-0


[Site "https://www.chess.com"]

[Event "Titled Tuesday Blitz June 27 Late 2023"]
[White "Bruedigam, Martin"]
[Black "Matinian, Nikita"]
[WhiteFideId "24608033"]
[BlackFideId "24129100"]
[WhiteElo "2530"]
[BlackElo "2722"]
[Result "0-1"]
[Round "6"]
[TimeControl "180+2"]
[Date "2023.06.27"]
[WhiteClock "0:00:07"]
[BlackClock "0:00:49"]
[Board "77"]

1. d4 {[%clk 0:03:00]}  Nf6 {[%clk 0:03:00]} 2. c4 {[%clk 0:02:58]}  g6 {[%clk 0:03:00]} 3. f3 {[%clk 0:02:58]}  Bg7 {[%clk 0:02:59]} 4. e4 {[%clk 0:02:58]}  O-O {[%clk 0:02:59]} 5. Nc3 {[%clk 0:02:59]}  d6 {[%clk 0:02:58]} 6. Be3 {[%clk 0:02:59]}  Nc6 {[%clk 0:02:58]} 7. Qd2 {[%clk 0:02:59]}  a6 {[%clk 0:02:58]} 8. Nge2 {[%clk 0:02:56]}  Re8 {[%clk 0:02:57]} 9. Rb1 {[%clk 0:02:50]}  b5 {[%clk 0:02:55]} 10. cxb5 {[%clk 0:02:50]}  axb5 {[%clk 0:02:56]} 11. Nxb5 {[%clk 0:02:50]}  Rxa2 {[%clk 0:02:55]} 12. Na3 {[%clk 0:02:51]}  e5 {[%clk 0:02:49]} 13. d5 {[%clk 0:02:51]}  Nd4 {[%clk 0:02:49]} 14. Nc1 {[%clk 0:02:49]}  Rxa3 {[%clk 0:02:38]} 15. bxa3 {[%clk 0:02:50]}  Nh5 {[%clk 0:02:32]} 16. Bd3 {[%clk 0:02:41]}  f5 {[%clk 0:02:30]} 17. O-O {[%clk 0:02:40]}  f4 {[%clk 0:02:27]} 18. Bxd4 {[%clk 0:02:25]}  exd4 {[%clk 0:02:28]} 19. Rb8 {[%clk 0:02:24]}  Qe7 {[%clk 0:02:04]} 20. Ne2 {[%clk 0:02:13]}  g5 {[%clk 0:01:53]} 21. Qa5 {[%clk 0:01:46]}  Be5 {[%clk 0:01:19]} 22. Qa8 {[%clk 0:01:45]}  Bd7 {[%clk 0:01:04]} 23. Rc1 {[%clk 0:01:38]}  g4 {[%clk 0:01:00]} 24. Rxc7 {[%clk 0:01:38]}  Nf6 {[%clk 0:00:56]} 25. Rxe8+ {[%clk 0:00:47]}  Nxe8 {[%clk 0:00:57]} 26. Qc8 {[%clk 0:00:07]}  Qh4 {[%clk 0:00:49]} 0-1


[Site "https://www.chess.com"]